bitfinex/quotes_SOLUSD_20260305
["timestamp","ask_amount","ask_price","bid_price","bid_amount"]
[1772722568037,10.96708259,90.83,90.788,3.40902528]
[1772722568212,27.51818952,90.849,90.788,3.40902528]
[1772722568213,10.96708259,90.84,90.788,3.40902528]
[1772722568419,10.96708259,90.83,90.781,11.01550708]
[1772722569014,10.96708259,90.83,90.764,3.40902528]
[1772722569239,27.51818952,90.849,90.764,3.40902528]
[1772722569240,0.28432314,90.819,90.764,3.40902528]
[1772722569841,6.83466102,90.879,90.732,11.02145911]
[1772722569842,10.96708259,90.77,90.732,11.02145911]
[1772722570014,0.28432314,90.759,90.711,3.40902528]
[1772722570220,0.28432314,90.749,90.711,3.40902528]
[1772722570438,10.96708259,90.73,90.68,3.60902528]
[1772722570621,4.82477569,90.778,90.68,3.60902528]
[1772722570622,10.96708259,90.71,90.68,0.2]
[1772722570822,0.28432314,90.719,90.68,0.2]
[1772722571034,0.28432314,90.719,90.681,11.02766842]
[1772722571542,10.96708259,90.73,90.682,3.40902528]
[1772722571741,11.10924416,90.72,90.68,0.2]
[1772722571922,11.25140573,90.72,90.68,0.2]
[1772722572443,0.28432314,90.709,90.68,0.2]
[1772722572628,0.28432314,90.709,90.659,11.03031705]
[1772722573241,10.96708259,90.7,90.659,11.03031705]
[1772722573436,0.28432314,90.699,90.657,3.40902528]
[1772722573739,0.28432314,90.697,90.659,3.40902528]
[1772722573927,0.28432314,90.706,90.659,3.40902528]
[1772722574525,10.96708259,90.69,90.635,3.40902528]
[1772722574730,0.28432314,90.679,90.634,11.03334384]
[1772722574920,0.28432314,90.679,90.637,11.03302183]
[1772722575238,0.28432314,90.689,90.638,3.40902528]
[1772722575630,0.28432314,90.687,90.64,3.40902528]
[1772722576140,10.96708259,90.68,90.626,3.40902528]
[1772722576442,10.96708259,90.68,90.628,3.40902528]
[1772722576443,0.28432314,90.679,90.628,3.40902528]
[1772722576947,0.02024258,90.678,90.628,3.40902528]
[1772722577123,0.28432314,90.669,90.628,3.40902528]
[1772722577319,10.96708259,90.69,90.628,3.40902528]
[1772722577524,0.28432314,90.696,90.628,3.40902528]
[1772722577724,0.28432314,90.696,90.63,3.40902528]
[1772722577725,0.28432314,90.694,90.63,3.40902528]
[1772722577920,0.28432314,90.694,90.629,38.61898509]
[1772722577921,11.02304919,90.719,90.635,3.40902528]
[1772722578229,0.02245247,90.708,90.641,3.40902528]
[1772722578539,0.28432314,90.699,90.641,3.40902528]
[1772722578737,0.28432314,90.709,90.641,3.40902528]
[1772722579144,0.02679641,90.698,90.641,3.40902528]
[1772722579726,11.0242644,90.709,90.643,3.40902528]
[1772722580054,0.28432314,90.708,90.643,3.40902528]
[1772722580448,0.28432314,90.708,90.643,2.86191938]
[1772722581364,10.96708259,90.7,90.643,2.86191938]
[1772722581653,10.96708259,90.73,90.645,3.69383402]
[1772722581956,10.96708259,90.74,90.651,0.28432314]
[1772722582252,10.96708259,90.73,90.651,0.28432314]
[1772722582448,0.28432314,90.739,90.657,0.28432314]
[1772722582746,0.58229481,90.719,90.666,3.22977144]
[1772722582951,0.58229481,90.709,90.647,38.61131642]
[1772722583249,0.28432314,90.716,90.648,3.22977144]
[1772722583945,0.28432314,90.714,90.65,3.22977144]
[1772722584149,0.86865617,90.709,90.65,3.22977144]
[1772722584351,0.28432314,90.699,90.65,3.22977144]
[1772722584651,10.96708259,90.71,90.65,3.22977144]
[1772722584955,0.58634785,90.698,90.65,3.22977144]
[1772722585250,0.58634785,90.678,90.625,3.22977144]
[1772722585549,0.28432314,90.689,90.625,3.22977144]
[1772722585752,0.28432314,90.696,90.625,3.22977144]
[1772722586051,0.28432314,90.694,90.627,3.22977144]
[1772722586249,0.58835236,90.688,90.627,3.22977144]
[1772722586434,0.28432314,90.679,90.627,3.22977144]
[1772722587752,0.28432314,90.677,90.629,3.22854886]
[1772722587938,0.28432314,90.689,90.629,3.22854886]
[1772722588144,0.59422883,90.688,90.629,3.22854886]
[1772722588851,0.59614282,90.668,90.623,11.03462413]
[1772722589564,0.59614282,90.668,90.624,3.22854886]
[1772722589857,0.28432314,90.666,90.626,3.22854886]
[1772722590557,11.02937121,90.667,90.626,3.22854886]
[1772722590733,0.28432314,90.659,90.612,3.22854886]
[1772722591255,0.88422826,90.659,90.612,3.22854886]
[1772722591562,0.88422826,90.659,90.581,3.22854886]
[1772722591563,0.59990512,90.639,90.581,3.22854886]
[1772722591852,0.88422826,90.637,90.583,3.22854886]
[1772722592059,93.05974541,90.667,90.582,11.03972091]
[1772722592060,0.60175392,90.677,90.586,3.22854886]
[1772722592264,11.0282765,90.676,90.595,0.14216157]
[1772722592432,11.0282765,90.676,90.607,0.28432314]
[1772722592767,0.28432314,90.688,90.616,3.22854886]
[1772722593443,11.02547988,90.699,90.618,3.22854886]
[1772722593645,0.60358148,90.716,90.632,3.69383402]
[1772722593840,0.60538805,90.715,90.635,3.22854886]
[1772722594038,0.74754962,90.699,90.635,3.22854886]
[1772722594243,10.96708259,90.71,90.635,3.22854886]
[1772722594445,0.14216157,90.709,90.635,3.22854886]
[1772722594640,0.28432314,90.709,90.635,3.22854886]
[1772722594856,0.60717387,90.708,90.635,3.22854886]
[1772722595037,0.60717387,90.698,90.635,3.22854886]
[1772722595233,0.28432314,90.709,90.635,3.22854886]
[1772722595438,0.60717387,90.708,90.635,3.22854886]
[1772722595651,0.60717387,90.708,90.632,3.69383402]
[1772722595652,38.58152275,90.717,90.637,3.22854886]
[1772722595851,0.60893918,90.709,90.637,3.22854886]
[1772722596160,0.60893918,90.708,90.637,3.22854886]
[1772722596757,0.28432314,90.709,90.637,3.22854886]
[1772722597053,0.61068422,90.753,90.642,3.22854886]
[1772722597256,38.56579323,90.754,90.641,0.28432314]
[1772722597257,0.61068422,90.749,90.651,0.14216157]
[1772722597460,0.61068422,90.719,90.651,3.22854886]
[1772722597654,0.89500736,90.719,90.651,3.22854886]
[1772722597955,0.89500736,90.719,90.639,3.69383402]
[1772722597956,0.28432314,90.717,90.653,3.22854886]
[1772722599338,0.28432314,90.709,90.653,3.22854886]
[1772722599537,0.89843753,90.709,90.653,3.22854886]
[1772722599734,0.14216157,90.707,90.655,3.22854886]
[1772722601867,0.14216157,90.716,90.657,3.22854886]
[1772722602862,44.07999389,90.745,90.656,38.60748322]
[1772722602863,11.0221987,90.726,90.662,3.22854886]
[1772722603066,27.55044066,90.743,90.666,3.22854886]
[1772722603367,16.77313799,90.754,90.668,3.22854886]
[1772722603567,11.0190409,90.752,90.676,3.22854886]
[1772722603746,11.0190409,90.752,90.686,3.22854886]
[1772722603946,0.28432314,90.751,90.691,3.22854886]
[1772722604555,0.62235095,90.758,90.691,3.22854886]
[1772722605153,0.90826507,90.749,90.691,3.22854886]
[1772722605348,0.28432314,90.749,90.691,3.22854886]
[1772722605542,11.01697716,90.769,90.692,0.28432314]
[1772722605766,0.62394193,90.768,90.695,3.22854886]
[1772722606064,0.62551465,90.758,90.697,3.22854886]
[1772722606268,0.62551465,90.729,90.668,3.22854886]
[1772722606446,10.96708259,90.7,90.636,3.22854886]
[1772722606647,10.96708259,90.7,90.639,3.22854886]
[1772722607170,0.90983779,90.709,90.642,3.22854886]
[1772722607542,10.96708259,90.7,90.642,3.22854886]
[1772722607747,0.28432314,90.709,90.642,3.22854886]
[1772722607971,11.02304919,90.719,90.651,3.22854886]
[1772722608272,0.62860609,90.746,90.665,3.22854886]
[1772722608440,38.56961815,90.745,90.675,3.22854886]
[1772722608843,10.96708259,90.73,90.675,3.22854886]
[1772722609367,0.63162692,90.728,90.675,3.22854886]
[1772722609670,0.28432314,90.729,90.675,3.22854886]
[1772722609967,44.07680129,90.751,90.648,3.69383402]
[1772722609968,38.85649165,90.739,90.677,3.30042813]
[1772722610167,38.57216851,90.739,90.677,3.30042813]
[1772722610360,0.63311136,90.737,90.677,3.30042813]
[1772722610945,0.63311136,90.737,90.676,38.59896775]
[1772722610946,0.63457875,90.766,90.682,3.30042813]
[1772722611148,3.69383402,90.767,90.682,3.30042813]
[1772722611149,0.28432314,90.739,90.682,3.30042813]
[1772722611764,0.91890189,90.749,90.682,3.30042813]
[1772722611967,0.28432314,90.747,90.684,3.30042813]
[1772722612766,11.0195266,90.748,90.686,3.30042813]
[1772722613270,38.5683431,90.748,90.686,3.30042813]
[1772722613871,0.92178631,90.729,90.676,3.30042813]
[1772722614056,10.96708259,90.72,90.678,3.30042813]
[1772722615152,0.92460484,90.719,90.678,3.30042813]
[1772722615348,10.96708259,90.71,90.658,3.30042813]
[1772722615655,0.6402817,90.718,90.658,3.30042813]
[1772722616762,11.02304919,90.719,90.66,3.30042813]
[1772722618974,0.64438926,90.729,90.649,44.12594006]
[1772722618975,11.02183425,90.729,90.665,3.30042813]
[1772722619456,38.57641988,90.729,90.665,3.30042813]
[1772722620173,11.02183425,90.729,90.665,3.30042813]
[1772722620679,0.8240439,106.26,90.661,93.75585973]
[1772722620680,0.64704961,90.769,90.672,3.30042813]
[1772722620984,0.6483569,90.746,90.681,3.30042813]
[1772722621673,0.28432314,90.747,90.681,3.30042813]
[1772722621982,0.28432314,90.747,90.667,0.28432314]
[1772722621983,0.64964919,90.718,90.669,3.30042813]
[1772722622154,10.96708259,90.71,90.669,3.30042813]
[1772722622355,0.64964919,90.708,90.669,3.30042813]
[1772722622561,0.64964919,90.708,90.661,11.03007246]
[1772722623077,0.28432314,90.706,90.662,3.30042813]
[1772722623272,0.65092663,90.705,90.635,3.30042813]
[1772722623477,0.7930882,90.689,90.635,3.30042813]
[1772722623692,0.93524977,90.689,90.635,3.30042813]
[1772722623858,0.65218939,90.688,90.635,3.30042813]
[1772722624560,0.28432314,90.689,90.635,3.30042813]
[1772722624867,38.58577618,90.707,90.634,38.61685459]
[1772722624868,11.02399878,90.712,90.644,3.30042813]
[1772722625060,0.28432314,90.718,90.646,3.30042813]
[1772722625256,0.28432314,90.713,90.646,3.30042813]
[1772722625778,0.65343766,90.698,90.646,3.30042813]
[1772722625979,0.65467158,90.678,90.629,3.30042813]
[1772722626160,0.65467158,90.678,90.63,3.30042813]
[1772722626681,0.65467158,90.668,90.629,3.30042813]
[1772722627202,0.28432314,90.666,90.631,3.30042813]
[1772722627982,11.02791164,90.679,90.631,3.30042813]
[1772722628559,0.65709708,90.699,90.631,3.30042813]
[1772722628778,0.65828897,90.689,90.631,3.30042813]
[1772722628960,0.65828897,90.688,90.631,3.30042813]
[1772722629164,0.28432314,90.686,90.633,3.30042813]
[1772722629360,0.28432314,90.686,90.629,3.30042813]
[1772722629361,0.65828897,90.678,90.629,3.30042813]
[1772722629560,0.65828897,90.678,90.63,3.30042813]
[1772722630159,0.28432314,90.669,90.628,2.32195464]
[1772722630359,0.28432314,90.669,90.628,5.62238277]
[1772722630581,82.70204107,90.687,90.63,3.30042813]
[1772722630582,0.28432314,90.679,90.63,3.30042813]
[1772722630768,0.66063184,90.678,90.63,3.30042813]
[1772722631159,11.02803326,90.678,90.632,3.30042813]
[1772722631361,11.02669563,90.689,90.632,3.30042813]
[1772722631782,0.66063184,90.706,90.634,3.30042813]
[1772722631959,27.55765788,90.719,90.639,0.14216157]
[1772722632292,27.55765788,90.719,90.646,3.30042813]
[1772722632293,0.28432314,90.718,90.646,3.30042813]
[1772722632581,11.00581436,90.73,90.634,3.69383402]
[1772722632582,11.02061957,90.739,90.656,3.30042813]
[1772722632958,0.28432314,90.738,90.656,3.30042813]
[1772722633160,11.01940517,90.749,90.665,3.30042813]
[1772722633361,11.01661305,90.772,90.675,3.30042813]
[1772722633577,11.01661305,90.772,90.673,0.28432314]
[1772722633578,0.6629212,90.769,90.683,3.30042813]
[1772722633775,0.6629212,90.768,90.695,3.30042813]
[1772722634709,0.28432314,90.769,90.695,3.30042813]
[1772722634710,0.94836934,90.759,90.695,3.30042813]
[1772722634878,0.94948142,90.749,90.695,3.30042813]
[1772722635182,0.66515828,90.758,90.695,3.30042813]
[1772722635582,0.66515828,90.758,90.667,0.28432314]
[1772722635583,0.94948142,90.749,90.697,3.30042813]
[1772722635887,0.66515828,90.749,90.697,3.30042813]
[1772722636264,0.66625758,90.748,90.697,3.30042813]
[1772722636489,0.66625758,90.719,90.675,3.30042813]
[1772722636782,0.66625758,90.718,90.665,3.30042813]
[1772722636986,11.00581436,90.72,90.665,3.30042813]
[1772722637170,11.67315862,90.73,90.665,3.30042813]
[1772722637584,0.66734426,90.727,90.667,3.30042813]
[1772722638289,38.57684506,90.728,90.667,3.30042813]
[1772722639492,11.02195573,90.728,90.669,3.22593195]
[1772722640566,0.28432314,90.75,90.671,3.22593195]
[1772722640786,27.54791786,90.751,90.676,0.14216157]
[1772722640970,11.0190409,90.752,90.69,0.28432314]
[1772722641173,11.0190409,90.752,90.677,1.10281548]
[1772722641174,0.67259325,90.749,90.693,3.22593195]
[1772722641488,0.28432314,90.751,90.693,3.22593195]
[1772722641672,38.5674931,90.75,90.695,3.22593195]
[1772722641988,0.67360716,90.738,90.681,3.22593195]
[1772722642885,38.5674931,90.75,90.681,3.22593195]
[1772722643085,38.5674931,90.75,90.685,3.22593195]
[1772722643392,0.14216157,90.749,90.685,3.22593195]
[1772722643694,0.81677099,90.727,90.676,3.22593195]
[1772722644373,0.14216157,90.727,90.676,3.22593195]
[1772722644892,38.57684506,90.728,90.676,3.22593195]
[1772722644893,11.02195573,90.728,90.676,3.22593195]
[1772722645887,39.24971616,90.739,90.677,11.02815487]
[1772722646188,0.67754765,90.729,90.678,3.22593195]
[1772722646486,0.28432314,90.738,90.678,3.22593195]
[1772722646991,38.57216851,90.739,90.684,0.14216157]
[1772722646992,11.02061957,90.739,90.684,0.14216157]
[1772722647170,0.67945065,90.737,90.685,3.30880989]
[1772722647374,38.57216851,90.739,90.685,3.30880989]
[1772722647782,0.67945065,90.737,90.685,3.30880989]
[1772722647979,0.28432314,90.738,90.685,3.30880989]
[1772722647980,39.25765606,90.727,90.685,3.30880989]
[1772722648170,38.57727027,90.727,90.687,3.30880989]
[1772722649093,0.28432314,90.736,90.687,3.30880989]
[1772722649994,11.01940517,90.749,90.687,3.30880989]
[1772722650195,0.68222397,90.759,90.689,3.30880989]
[1772722650379,11.00581436,90.75,90.689,3.30880989]
[1772722650574,0.68222397,90.737,90.689,3.30880989]
[1772722650890,0.96654711,90.737,90.689,3.30880989]
[1772722651086,0.68312726,90.729,90.678,3.30880989]
[1772722651290,0.14216157,90.736,90.678,3.30880989]
[1772722651678,0.14216157,90.74,90.678,3.30880989]
[1772722651679,11.00581436,90.75,90.678,3.30880989]
[1772722651998,0.28432314,90.739,90.678,3.30880989]
[1772722652174,0.68402017,90.736,90.68,3.30880989]
[1772722653403,0.68490283,90.728,90.68,3.30880989]
[1772722653994,0.68577534,90.718,90.662,11.02997948]
[1772722654290,0.68577534,90.715,90.663,3.30880989]
[1772722654494,0.28432314,90.716,90.663,3.30880989]
[1772722655080,0.68663784,90.715,90.663,3.30880989]
[1772722655285,0.28432314,90.709,90.663,3.30880989]
[1772722655591,0.28432314,90.709,90.661,2.32110946]
[1772722655592,0.97096098,90.689,90.65,3.30880989]
[1772722655992,0.68749043,90.704,90.65,3.30880989]
[1772722656191,0.28432314,90.702,90.652,3.30880989]
[1772722658287,38.58832867,90.701,90.653,11.03107453]
[1772722658487,0.68916634,90.699,90.654,3.30880989]
[1772722658704,11.02523676,90.701,90.654,3.30880989]
[1772722659197,38.58832867,90.701,90.654,3.30880989]
[1772722659390,11.02304919,90.719,90.654,3.30880989]
[1772722659590,38.58067217,90.719,90.654,3.30880989]
[1772722659792,0.68998988,90.717,90.654,3.30880989]
[1772722660499,0.97512711,90.715,90.656,3.30880989]
[1772722661178,0.28432314,90.715,90.656,3.30880989]
[1772722661380,0.69160871,90.714,90.656,3.30880989]
[1772722661702,0.28432314,90.715,90.656,3.30880989]
[1772722662383,0.28432314,90.712,90.658,3.30880989]
[1772722662997,11.02256318,90.723,90.661,3.30880989]
[1772722663301,0.28432314,90.722,90.661,3.30880989]
[1772722663600,0.69319056,90.721,90.661,3.30880989]
[1772722663794,99.17727725,90.747,90.66,3.69383402]
[1772722663795,11.01855524,90.756,90.663,3.30880989]
[1772722663994,0.69396788,90.755,90.672,0.14216157]
[1772722664181,0.69396788,90.754,90.685,3.30880989]
[1772722664900,0.97905942,90.749,90.687,3.30880989]
[1772722665118,0.69473628,90.748,90.687,3.30880989]
[1772722665602,0.69473628,90.738,90.687,3.30880989]
[1772722666899,0.69624669,90.735,90.687,3.30880989]
[1772722667209,0.69624669,90.735,90.689,3.30880989]
[1772722668297,0.28432314,90.736,90.689,3.30880989]
[1772722668815,11.02001234,90.744,90.691,3.23713858]
[1772722669216,0.28432314,90.743,90.691,3.23713858]
[1772722669795,0.69916482,90.742,90.691,3.23713858]
[1772722670593,0.28432314,90.743,90.691,3.23713858]
[1772722670993,0.28432314,90.741,90.693,3.23713858]
[1772722671314,0.14216157,90.741,90.693,3.23713858]
[1772722671495,0.28432314,90.741,90.693,3.23713858]
[1772722671698,11.02025522,90.742,90.693,3.23713858]
[1772722671904,11.01855524,90.756,90.699,3.23713858]
[1772722672251,27.54077492,90.775,90.705,3.23713858]
[1772722672429,11.01515685,90.784,90.707,3.23713858]
[1772722672727,38.55098406,90.789,90.715,3.23713858]
[1772722672892,0.28432314,90.786,90.719,3.69383402]
[1772722673097,0.28432314,90.786,90.72,3.23713858]
[1772722673490,11.01479286,90.787,90.723,0.28432314]
[1772722673722,11.01479286,90.787,90.719,3.69383402]
[1772722673723,38.55177502,90.787,90.726,3.23713858]
[1772722673900,0.70195117,90.786,90.726,3.23713858]
[1772722674109,0.98627431,90.786,90.726,3.23713858]
[1772722674294,0.28432314,90.786,90.726,3.23713858]
[1772722674908,0.98695101,90.783,90.728,3.23713858]
[1772722675226,0.28432314,90.783,90.728,3.23713858]
[1772722675605,0.14216157,90.783,90.728,3.23713858]
[1772722675805,0.28432314,90.783,90.728,3.23713858]
[1772722676021,0.70329679,90.782,90.728,3.23713858]
[1772722677024,0.84611961,90.78,90.73,3.23713858]
[1772722677244,0.28432314,90.779,90.73,3.23713858]
[1772722677532,0.70395804,90.778,90.73,3.23713858]
[1772722677829,0.28432314,90.779,90.73,3.23713858]
[1772722678021,0.70461169,90.778,90.73,3.23713858]
[1772722680105,0.70589655,90.775,90.73,3.23713858]
[1772722680413,0.28432314,90.776,90.73,3.23713858]
[1772722680610,55.16392801,90.79,90.732,3.23713858]
[1772722680611,11.01479286,90.787,90.732,3.23713858]
[1772722681625,38.55177502,90.787,90.732,3.23713858]
[1772722682020,38.55177502,90.787,90.731,38.57556953]
[1772722682021,0.70715206,90.787,90.734,3.23713858]
[1772722683224,0.1,90.79,90.734,3.23713858]
[1772722683545,0.1,90.79,90.732,11.02141658]
[1772722683546,0.1,90.79,90.736,3.23713858]
[1772722683714,0.1,90.8,90.735,5.0802677]
[1772722683715,11.00983413,90.828,90.744,3.23713858]
[1772722683914,11.00983413,90.828,90.752,3.23713858]
[1772722683915,14.3144887,90.828,90.752,3.23713858]
[1772722684114,0.1,90.83,90.766,3.23713858]
[1772722684415,0.1,90.83,90.786,3.23713858]
[1772722685337,3.30465457,90.829,90.786,3.23713858]
[1772722685656,0.1,90.83,90.786,3.23713858]
[1772722686024,0.1,90.83,90.791,3.23713858]
[1772722686222,27.5184497,90.849,90.791,3.23713858]
[1772722686734,27.5184497,90.849,90.793,3.23713858]
[1772722687122,0.1,90.85,90.793,3.23713858]
[1772722687741,0.1,90.85,90.795,3.23713858]
[1772722688136,0.1,90.85,90.79,3.69383402]
[1772722688137,38.62504127,90.85,90.797,3.23713858]
[1772722688945,11.10715465,90.85,90.797,3.23713858]
[1772722689339,0.1,90.85,90.797,3.23713858]
[1772722690150,0.1,90.85,90.799,3.23713858]
[1772722691424,0.1,90.85,90.805,3.23713858]
[1772722692233,0.1,90.85,90.81,3.23713858]
[1772722692560,0.1,90.85,90.809,3.69383402]
[1772722692561,1e-08,90.858,90.816,3.23713858]
[1772722693034,14.31084958,90.858,90.816,3.23713858]
[1772722693231,11.00619501,90.858,90.816,3.23713858]
[1772722693626,11.00619501,90.858,90.806,11.01248816]
[1772722693627,0.28432314,90.856,90.806,11.01248816]
[1772722693833,3.30465457,90.851,90.806,11.01248816]
[1772722694146,11.00715465,90.85,90.809,3.23713858]
[1772722694349,1e-08,90.858,90.813,3.23713858]
[1772722694656,44.00163729,90.906,90.808,11.01224561]
[1772722694657,3.30465457,90.887,90.827,3.23713858]
[1772722694834,1e-08,90.881,90.835,3.23713858]
[1772722695037,3.30465457,90.915,90.843,3.23713858]
[1772722695338,14.30400701,90.915,90.855,3.23713858]
[1772722695544,43.97537953,90.96,90.855,3.23713858]
[1772722695545,3.30465457,90.908,90.855,3.23713858]
[1772722695734,3.30465457,90.923,90.855,3.23713858]
[1772722695926,10.99936809,90.915,90.855,3.23713858]
[1772722696123,3.30465457,90.923,90.857,3.23713858]
[1772722696322,10.99860494,90.921,90.862,3.23713858]
[1772722696542,10.99812257,90.925,90.866,3.23713858]
[1772722696747,10.99843822,90.922,90.866,3.23713858]
[1772722697328,10.99843822,90.922,90.859,3.69383402]
[1772722697329,0.1,90.93,90.869,3.23713858]
[1772722697544,0.1,90.93,90.859,3.69383402]
[1772722697545,3.30465457,90.96,90.884,0.28432314]
[1772722697753,5.74024622,90.977,90.895,3.23713858]
[1772722697941,10.99139701,90.981,90.912,3.23713858]
[1772722698140,43.94124934,91.031,90.911,0.28432314]
[1772722698141,3.30465457,91.007,90.919,126.77053613]
[1772722698338,3.30465457,91.007,90.924,4.82477569]
[1772722698650,1.80465457,91.006,90.936,3.23713858]
[1772722698853,5.73703364,91.024,90.949,0.28432314]
[1772722699038,43.92916458,91.056,90.956,3.28347399]
[1772722699350,43.92916458,91.056,90.927,3.69383402]
[1772722699351,5.73589259,91.039,90.964,3.28347399]
[1772722699549,5.73589259,91.039,90.928,2.71417148]
[1772722699550,43.89563412,91.126,90.975,3.28347399]
[1772722699730,43.88265714,91.153,90.985,4.82477569]
[1772722699731,6.90907675,91.116,90.985,4.82477569]
[1772722699929,6.90907675,91.116,90.974,0.28432314]
[1772722699930,6.90907675,91.116,91.005,3.28347399]
[1772722700233,82.30091407,91.129,91.02,3.28347399]
[1772722700234,10.97827399,91.089,91.02,3.28347399]
[1772722700430,10.97827399,91.089,91.02,2.7329612]
[1772722700431,3.28181726,91.088,91.02,2.7329612]
[1772722700742,3.28181726,91.088,91.016,38.45477717]
[1772722700743,3.28181726,91.1,91.021,0.28432314]
[1772722700947,11.16707117,91.13,91.024,0.28432314]
[1772722700948,3.28181726,91.129,91.024,0.28432314]
[1772722701126,0.1,91.11,91.031,3.69383402]
[1772722701457,3.28181726,91.109,91.032,6.39662802]
[1772722701647,0.1,91.11,91.036,0.28432314]
[1772722701828,0.1,91.11,91.039,3.69383402]
[1772722702029,0.1,91.11,91.044,4.82477569]
[1772722702330,3.28181726,91.16,91.055,3.28347399]
[1772722702648,3.28181726,91.159,91.074,3.28347399]
[1772722702829,3.28181726,91.149,91.076,3.28347399]
[1772722703226,3.28181726,91.149,91.078,3.28347399]
[1772722703426,3.28181726,91.149,91.084,3.28347399]
[1772722703629,10.96779854,91.176,91.091,3.28347399]
[1772722703849,3.28181726,91.175,91.1,3.28347399]
[1772722704057,3.28181726,91.175,91.102,3.28347399]
[1772722704258,3.28181726,91.169,91.104,3.28347399]
[1772722705254,3.28181726,91.173,91.114,3.28347399]
[1772722705437,3.28181726,91.167,91.1,3.28347399]
[1772722705625,3.28181726,91.147,91.093,10.76904638]
[1772722705828,0.28432314,91.138,91.093,10.76904638]
[1772722706149,3.28181726,91.13,91.093,10.76904638]
[1772722706353,3.28181726,91.148,91.095,3.28347399]
[1772722706538,43.86292578,91.194,91.094,38.42184995]
[1772722706539,3.20559797,91.171,91.097,3.28347399]
[1772722707126,38.38897906,91.172,91.097,3.28347399]
[1772722707127,0.14216157,91.158,91.097,3.28347399]
[1772722707348,3.20559797,91.167,91.097,3.28347399]
[1772722707540,3.20559797,91.171,91.097,3.28347399]
[1772722707747,38.38897906,91.172,91.097,3.28347399]
[1772722707748,3.20559797,91.169,91.097,3.28347399]
[1772722707944,43.85571201,91.209,91.097,3.28347399]
[1772722707945,3.20559797,91.223,91.118,3.45022623]
[1772722708250,43.83726116,91.247,91.191,3.45022623]
[1772722708251,10.96106629,91.232,91.191,3.45022623]
[1772722708444,3.20559797,91.226,91.151,10.97080668]
[1772722709655,3.20559797,91.226,91.152,0.28432314]
[1772722709861,10.96106629,91.232,91.152,0.28432314]
[1772722710151,10.96106629,91.232,91.155,0.28432314]
[1772722710345,10.96106629,91.232,91.159,3.69383402]
[1772722710547,10.96106629,91.232,91.167,3.45022623]
[1772722710739,10.96106629,91.232,91.177,3.45022623]
[1772722710935,3.48341417,91.241,91.177,3.45022623]
[1772722711136,10.960826,91.234,91.177,3.45022623]
[1772722711461,0.2778162,91.241,91.188,3.45022623]
[1772722711755,14.16042028,91.284,91.195,1.34698898]
[1772722711956,38.34187809,91.284,91.2,1.63131212]
[1772722712173,3.20559797,91.283,91.205,1.34698898]
[1772722712336,3.20559797,91.281,91.207,1.63131212]
[1772722712541,3.20559797,91.279,91.207,1.34698898]
[1772722712747,3.20559797,91.274,91.207,1.34698898]
[1772722712946,10.95506233,91.282,91.203,56.45328723]
[1772722713148,3.20559797,91.281,91.207,1.34620608]
[1772722713350,10.95409671,91.291,91.211,1.34620608]
[1772722713544,10.95362236,91.294,91.219,1.34620608]
[1772722713741,10.95110833,91.315,91.219,1.34620608]
[1772722714059,10.95110833,91.315,91.203,272.2621926]
[1772722714060,41.53445959,91.315,91.241,1.34649547]
[1772722714234,3.20559797,91.313,91.243,1.63081861]
[1772722714841,3.20559797,91.338,91.247,1.34649547]
[1772722715560,3.20559797,91.35,91.262,1.34678152]
[1772722715863,3.20559797,91.35,91.271,1.34678152]
[1772722716063,3.20559797,91.379,91.273,1.63138743]
[1772722716247,3.20559797,91.369,91.278,1.63138743]
[1772722716442,0.14216157,91.368,91.281,1.63138743]
[1772722716655,3.20559797,91.365,91.281,1.63138743]
[1772722717289,10.96707117,91.34,91.267,1.35390287]
[1772722717438,10.96707117,91.33,91.23,1.35390287]
[1772722717637,0.14216157,91.355,91.23,1.35390287]
[1772722717638,3.20559797,91.319,91.23,1.35390287]
[1772722717950,10.96707117,91.32,91.203,14.5951769]
[1772722717951,3.20559797,91.269,91.203,14.5951769]
[1772722718150,3.20559797,91.267,91.203,3.63067833]
[1772722718358,3.48992111,91.247,91.154,1.36066289]
[1772722718537,3.20559797,91.239,91.156,1.36066289]
[1772722718741,3.49799879,91.252,91.156,3.04301484]
[1772722719037,3.49799879,91.252,91.161,3.69383402]
[1772722719252,3.49799879,91.252,91.162,4.13976284]
[1772722719538,3.49799879,91.252,91.163,3.04278118]
[1772722719750,3.49799879,91.252,91.164,1.09692422]
[1772722719950,3.49799879,91.252,91.164,4.13967202]
[1772722720157,3.49799879,91.252,91.165,3.04271443]
[1772722720354,3.49799879,91.247,91.166,38.3915056]
[1772722720559,3.49799879,91.245,91.167,4.1395358]
[1772722720846,3.49799879,91.245,91.168,3.0426143]
[1772722721047,3.49799879,91.245,91.169,1.09686406]
[1772722721246,3.49799879,91.229,91.169,3.04258093]
[1772722721469,3.49799879,91.247,91.169,3.04258093]
[1772722721643,3.49799879,91.247,91.17,1.59685203]
[1772722721846,3.49799879,91.247,91.172,0.02627252]
[1772722722274,14.45738331,91.246,91.172,82.28837052]
[1772722722468,3.49799879,91.245,91.174,0.02627252]
[1772722722670,3.49799879,91.245,91.176,0.02627252]
[1772722722865,3.49799879,91.245,91.178,0.03265314]
[1772722723166,3.49799879,91.262,91.18,0.03265314]
[1772722723367,3.49799879,91.261,91.182,0.03265314]